[Event "*** Titled Tuesday Blitz"]
[Site "Chess.com"]
[Date "2020.04.14"]
[Round "8"]
[White "DanielDardha2005"]
[Black "varacalli"]
[Result "1-0"]
[WhiteElo "2577"]
[BlackElo "2389"]
[TimeControl "180+1"]
[EndTime "11:31:49 PDT"]
[Termination "DanielDardha2005 won by checkmate"]

1. e4 {[%clk 0:03:00.9]} 1... e5 {[%clk 0:02:59.7]} 2. Nc3 {[%clk 0:02:59.6]}
2... Nc6 {[%clk 0:03:00.1]} 3. g3 {[%clk 0:02:57.2]} 3... Nf6 {[%clk 0:02:59.8]}
4. Bg2 {[%clk 0:02:57.6]} 4... Bc5 {[%clk 0:03:00.1]} 5. Nge2 {[%clk 0:02:57.5]}
5... d6 {[%clk 0:03:00]} 6. d3 {[%clk 0:02:57]} 6... a6 {[%clk 0:03:00.3]} 7.
O-O {[%clk 0:02:56.3]} 7... h5 {[%clk 0:02:59.4]} 8. Bg5 {[%clk 0:02:51.6]} 8...
Be6 {[%clk 0:02:54.8]} 9. Nd5 {[%clk 0:02:36.7]} 9... Bxd5 {[%clk 0:02:49.6]}
10. exd5 {[%clk 0:02:37.6]} 10... Ne7 {[%clk 0:02:50.4]} 11. h4 {[%clk
0:02:30.5]} 11... Qd7 {[%clk 0:02:46.8]} 12. c4 {[%clk 0:02:18]} 12... Ng4
{[%clk 0:02:40.4]} 13. d4 {[%clk 0:02:13.4]} 13... exd4 {[%clk 0:02:40.3]} 14.
Nxd4 {[%clk 0:02:12.9]} 14... O-O-O {[%clk 0:02:34.5]} 15. b4 {[%clk 0:01:40.9]}
15... Bxd4 {[%clk 0:02:27.2]} 16. Qxd4 {[%clk 0:01:38.8]} 16... f6 {[%clk
0:02:26.3]} 17. Qa7 {[%clk 0:01:37.3]} 17... Qf5 {[%clk 0:02:20.7]} 18. Rae1
{[%clk 0:01:33.4]} 18... Kd7 {[%clk 0:02:15.4]} 19. Be4 {[%clk 0:01:17]} 19...
Qe5 {[%clk 0:02:14.6]} 20. Bf4 {[%clk 0:01:16.3]} 20... Qc3 {[%clk 0:02:08.1]}
21. Qxb7 {[%clk 0:01:15.5]} 21... Rb8 {[%clk 0:02:00.4]} 22. Qxa6 {[%clk
0:01:12.5]} 22... Qxb4 {[%clk 0:02:00.3]} 23. Rb1 {[%clk 0:01:02.4]} 23... Rb6
{[%clk 0:01:31.8]} 24. Qxb6 {[%clk 0:00:53.8]} 24... Qxb6 {[%clk 0:01:30.7]} 25.
Rxb6 {[%clk 0:00:53.8]} 25... cxb6 {[%clk 0:01:31.6]} 26. Rb1 {[%clk 0:00:54.4]}
26... Kc7 {[%clk 0:01:28.6]} 27. Rb2 {[%clk 0:00:41.7]} 27... Ra8 {[%clk
0:01:25.9]} 28. f3 {[%clk 0:00:34.2]} 28... Ne5 {[%clk 0:01:26]} 29. Bxe5 {[%clk
0:00:34.7]} 29... fxe5 {[%clk 0:01:26.9]} 30. Kf2 {[%clk 0:00:29.8]} 30... Ra3
{[%clk 0:01:23]} 31. g4 {[%clk 0:00:23.2]} 31... hxg4 {[%clk 0:01:19.9]} 32.
fxg4 {[%clk 0:00:24.1]} 32... Ng8 {[%clk 0:01:11.3]} 33. Kg2 {[%clk 0:00:15.8]}
33... Rc3 {[%clk 0:01:07.3]} 34. Rc2 {[%clk 0:00:14.3]} 34... Re3 {[%clk
0:01:07]} 35. Bf5 {[%clk 0:00:14]} 35... Nf6 {[%clk 0:01:04.7]} 36. g5 {[%clk
0:00:11.1]} 36... Nh5 {[%clk 0:01:04.7]} 37. Bg4 {[%clk 0:00:11.1]} 37... Nf4+
{[%clk 0:01:03.4]} 38. Kh2 {[%clk 0:00:11.4]} 38... g6 {[%clk 0:01:01.3]} 39. a4
{[%clk 0:00:10.2]} 39... Ra3 {[%clk 0:01:01.1]} 40. Bd1 {[%clk 0:00:07.3]} 40...
Rh3+ {[%clk 0:00:56.3]} 41. Kg1 {[%clk 0:00:07.2]} 41... Rxh4 {[%clk 0:00:56.6]}
42. a5 {[%clk 0:00:07.6]} 42... bxa5 {[%clk 0:00:56.2]} 43. c5 {[%clk
0:00:08.1]} 43... dxc5 {[%clk 0:00:56.5]} 44. Rxc5+ {[%clk 0:00:09]} 44... Kd6
{[%clk 0:00:56.5]} 45. Rxa5 {[%clk 0:00:08.9]} 45... Rh3 {[%clk 0:00:50.1]} 46.
Kf2 {[%clk 0:00:06.3]} 46... Rd3 {[%clk 0:00:46.1]} 47. Bf3 {[%clk 0:00:05.7]}
47... Nxd5 {[%clk 0:00:36.7]} 48. Ra6+ {[%clk 0:00:05.5]} 48... Kc5 {[%clk
0:00:36.4]} 49. Rxg6 {[%clk 0:00:05.6]} 49... Nf4 {[%clk 0:00:34.3]} 50. Rc6+
{[%clk 0:00:05.5]} 50... Kd4 {[%clk 0:00:30.9]} 51. Rd6+ {[%clk 0:00:05.6]}
51... Kc5 {[%clk 0:00:29.8]} 52. Rc6+ {[%clk 0:00:04.7]} 52... Kd4 {[%clk
0:00:29.7]} 53. g6 {[%clk 0:00:05.2]} 53... e4 {[%clk 0:00:17.1]} 54. Rd6+
{[%clk 0:00:02.7]} 54... Nd5 {[%clk 0:00:17.5]} 55. Bxe4 {[%clk 0:00:02.2]}
55... Kxe4 {[%clk 0:00:16.6]} 56. g7 {[%clk 0:00:02.7]} 56... Rf3+ {[%clk
0:00:16.2]} 57. Kg2 {[%clk 0:00:02.6]} 57... Ne3+ {[%clk 0:00:12.2]} 58. Kh2
{[%clk 0:00:02.6]} 58... Rf2+ {[%clk 0:00:12.4]} 59. Kh3 {[%clk 0:00:03]} 59...
Rf3+ {[%clk 0:00:12.5]} 60. Kh4 {[%clk 0:00:03.4]} 60... Rf1 {[%clk 0:00:12.9]}
61. Re6+ {[%clk 0:00:02.8]} 61... Kd3 {[%clk 0:00:12.5]} 62. Rd6+ {[%clk
0:00:02.8]} 62... Ke2 {[%clk 0:00:12.9]} 63. Rg6 {[%clk 0:00:03.7]} 63... Rh1+
{[%clk 0:00:11.7]} 64. Kg5 {[%clk 0:00:03.9]} 64... Nd5 {[%clk 0:00:09.5]} 65.
g8=Q {[%clk 0:00:03.7]} 65... Rg1+ {[%clk 0:00:09.9]} 66. Kh6 {[%clk 0:00:04]}
66... Rxg6+ {[%clk 0:00:10.8]} 67. Qxg6 {[%clk 0:00:03.4]} 67... Ne3 {[%clk
0:00:11.1]} 68. Qe4 {[%clk 0:00:03.4]} 68... Kd2 {[%clk 0:00:11.2]} 69. Kg5
{[%clk 0:00:04.3]} 69... Nc2 {[%clk 0:00:10.4]} 70. Kf4 {[%clk 0:00:04.6]} 70...
Kc3 {[%clk 0:00:11.3]} 71. Qf3+ {[%clk 0:00:04.3]} 71... Kc4 {[%clk 0:00:11.4]}
72. Ke5 {[%clk 0:00:05.2]} 72... Nb4 {[%clk 0:00:12.3]} 73. Qe4+ {[%clk
0:00:04.9]} 73... Kc5 {[%clk 0:00:12.4]} 74. Qe3+ {[%clk 0:00:04.5]} 74... Kc4
{[%clk 0:00:12.8]} 75. Qd4+ {[%clk 0:00:05]} 75... Kb3 {[%clk 0:00:12.9]} 76.
Qd7 {[%clk 0:00:04.9]} 76... Nc2 {[%clk 0:00:13.8]} 77. Ke4 {[%clk 0:00:05.1]}
77... Nb4 {[%clk 0:00:14.3]} 78. Qb5 {[%clk 0:00:05.4]} 78... Kc3 {[%clk
0:00:14.5]} 79. Qc5+ {[%clk 0:00:05.7]} 79... Kb3 {[%clk 0:00:14.2]} 80. Kd4
{[%clk 0:00:06.6]} 80... Nc2+ {[%clk 0:00:15.1]} 81. Kd3 {[%clk 0:00:06.9]}
81... Nb4+ {[%clk 0:00:15.5]} 82. Kd2 {[%clk 0:00:07.3]} 82... Na2 {[%clk
0:00:15.8]} 83. Qb5+ {[%clk 0:00:07]} 83... Nb4 {[%clk 0:00:16.7]} 84. Qc5
{[%clk 0:00:07]} 84... Na2 {[%clk 0:00:16.4]} 85. Qc2+ {[%clk 0:00:07.3]} 85...
Ka3 {[%clk 0:00:16.8]} 86. Qb1 {[%clk 0:00:07.7]} 86... Nb4 {[%clk 0:00:16.7]}
87. Kc3 {[%clk 0:00:08.1]} 87... Na2+ {[%clk 0:00:15.9]} 88. Kc4 {[%clk
0:00:08.2]} 88... Ka4 {[%clk 0:00:16.1]} 89. Qxa2# {[%clk 0:00:07.8]} 1-0

[Event "*** Titled Tuesday Blitz"]
[Site "Chess.com"]
[Date "2020.04.14"]
[Round "8"]
[White "Atanejhad"]
[Black "Xeniya2005"]
[Result "1/2-1/2"]
[WhiteElo "2541"]
[BlackElo "2224"]
[TimeControl "180+1"]
[EndTime "11:32:05 PDT"]
[Termination "Game drawn by repetition"]

1. e4 {[%clk 0:03:00.9]} 1... c5 {[%clk 0:02:59.4]} 2. Nf3 {[%clk 0:03:01]} 2...
Nc6 {[%clk 0:02:59.1]} 3. d4 {[%clk 0:03:01.6]} 3... cxd4 {[%clk 0:02:59.5]} 4.
Nxd4 {[%clk 0:03:02.5]} 4... Nf6 {[%clk 0:02:59.6]} 5. Nc3 {[%clk 0:03:02.3]}
5... e6 {[%clk 0:02:59.7]} 6. a3 {[%clk 0:03:00.4]} 6... Bc5 {[%clk 0:02:58.8]}
7. Nb3 {[%clk 0:02:59.9]} 7... Bb6 {[%clk 0:02:57.4]} 8. Be2 {[%clk 0:03:00]}
8... O-O {[%clk 0:02:54.6]} 9. O-O {[%clk 0:02:57.9]} 9... a6 {[%clk 0:02:51.9]}
10. Bg5 {[%clk 0:02:56.9]} 10... h6 {[%clk 0:02:48.2]} 11. Bh4 {[%clk 0:02:57]}
11... d6 {[%clk 0:02:26.9]} 12. Kh1 {[%clk 0:02:46.4]} 12... Bc7 {[%clk
0:02:13.6]} 13. f4 {[%clk 0:02:46.1]} 13... Qe7 {[%clk 0:02:10.1]} 14. Qe1
{[%clk 0:02:40.6]} 14... a5 {[%clk 0:01:59.1]} 15. Bd3 {[%clk 0:02:37.4]} 15...
a4 {[%clk 0:01:56.5]} 16. Nd2 {[%clk 0:02:37.1]} 16... b6 {[%clk 0:01:32.6]} 17.
Nf3 {[%clk 0:02:36.3]} 17... Qd7 {[%clk 0:01:19.8]} 18. Bxf6 {[%clk 0:01:52.3]}
18... gxf6 {[%clk 0:01:20.7]} 19. Qg3+ {[%clk 0:01:52.1]} 19... Kh7 {[%clk
0:01:09.9]} 20. Qh4 {[%clk 0:01:35.4]} 20... Bd8 {[%clk 0:01:06.2]} 21. f5
{[%clk 0:01:21.9]} 21... Ne5 {[%clk 0:00:53.5]} 22. Rad1 {[%clk 0:01:16.4]}
22... Qe7 {[%clk 0:00:42]} 23. Nxe5 {[%clk 0:01:07.9]} 23... dxe5 {[%clk
0:00:40.8]} 24. Rf3 {[%clk 0:01:03.8]} 24... Rg8 {[%clk 0:00:37.4]} 25. Rh3
{[%clk 0:01:03]} 25... Qf8 {[%clk 0:00:35.8]} 26. Bc4 {[%clk 0:00:57.7]} 26...
Qg7 {[%clk 0:00:25.9]} 27. Rg3 {[%clk 0:00:52.5]} 27... Qf8 {[%clk 0:00:25.5]}
28. Rh3 {[%clk 0:00:27.3]} 28... Qg7 {[%clk 0:00:24.6]} 29. Rd2 {[%clk
0:00:27.5]} 29... exf5 {[%clk 0:00:23.6]} 30. Rg3 {[%clk 0:00:22.7]} 30... Qf8
{[%clk 0:00:23.1]} 31. Rxg8 {[%clk 0:00:23]} 31... Qxg8 {[%clk 0:00:22.8]} 32.
Nd5 {[%clk 0:00:20.9]} 32... Qg7 {[%clk 0:00:19.5]} 33. Rd3 {[%clk 0:00:16.4]}
33... f4 {[%clk 0:00:19.4]} 34. Bb5 {[%clk 0:00:11.9]} 34... f5 {[%clk 0:00:19]}
35. Qe1 {[%clk 0:00:10.6]} 35... f6 {[%clk 0:00:17.4]} 36. exf5 {[%clk
0:00:10.4]} 36... Bxf5 {[%clk 0:00:17.3]} 37. Rc3 {[%clk 0:00:11.1]} 37... Rc8
{[%clk 0:00:16.7]} 38. Bd3 {[%clk 0:00:08.9]} 38... Bxd3 {[%clk 0:00:12.1]} 39.
Rxc8 {[%clk 0:00:08.9]} 39... Qd7 {[%clk 0:00:11.7]} 40. Rxd8 {[%clk 0:00:07.3]}
40... Qxd8 {[%clk 0:00:11.4]} 41. Nxf6+ {[%clk 0:00:04.5]} 41... Qxf6 {[%clk
0:00:11.3]} 42. cxd3 {[%clk 0:00:05.4]} 42... Qg6 {[%clk 0:00:11.3]} 43. Qc3
{[%clk 0:00:03.5]} 43... Qd6 {[%clk 0:00:10.6]} 44. h3 {[%clk 0:00:03.9]} 44...
Kg6 {[%clk 0:00:10.1]} 45. Qc4 {[%clk 0:00:03.8]} 45... Qd4 {[%clk 0:00:09.8]}
46. Qg8+ {[%clk 0:00:03.6]} 46... Kf6 {[%clk 0:00:08.7]} 47. Qf8+ {[%clk
0:00:04]} 47... Kg6 {[%clk 0:00:08.8]} 48. Qg8+ {[%clk 0:00:04]} 48... Kf6
{[%clk 0:00:09.2]} 49. Qh8+ {[%clk 0:00:04.5]} 49... Kg6 {[%clk 0:00:09.3]} 50.
Qe8+ {[%clk 0:00:04.7]} 50... Kf6 {[%clk 0:00:09.4]} 51. Qb5 {[%clk 0:00:05.2]}
51... Kg6 {[%clk 0:00:06.8]} 52. Qc6+ {[%clk 0:00:05.1]} 52... Kg5 {[%clk
0:00:06.6]} 53. Qf3 {[%clk 0:00:05.1]} 53... Kg6 {[%clk 0:00:06.6]} 54. Qg4+
{[%clk 0:00:05.2]} 54... Kf6 {[%clk 0:00:06.8]} 55. Qe2 {[%clk 0:00:05.7]} 55...
Kg6 {[%clk 0:00:06.9]} 56. Qc2 {[%clk 0:00:05.9]} 56... Kf6 {[%clk 0:00:07]} 57.
Kh2 {[%clk 0:00:06.5]} 57... Kg6 {[%clk 0:00:07]} 58. h4 {[%clk 0:00:07]} 58...
Qe3 {[%clk 0:00:06.9]} 59. Qc6+ {[%clk 0:00:07.2]} 59... Kh5 {[%clk 0:00:05.8]}
60. Qe8+ {[%clk 0:00:07.5]} 60... Kxh4 {[%clk 0:00:05.6]} 61. Qe7+ {[%clk
0:00:07.7]} 61... Kh5 {[%clk 0:00:05.8]} 62. Qf7+ {[%clk 0:00:07.7]} 62... Kg5
{[%clk 0:00:05.9]} 63. Qg7+ {[%clk 0:00:07.7]} 63... Kh5 {[%clk 0:00:06.1]} 64.
Qf7+ {[%clk 0:00:04.8]} 64... Kg5 {[%clk 0:00:05.9]} 65. Qg8+ {[%clk 0:00:04.6]}
65... Kh5 {[%clk 0:00:05.9]} 66. Qd5 {[%clk 0:00:04.4]} 66... Qg3+ {[%clk
0:00:05.2]} 67. Kh1 {[%clk 0:00:04.7]} 67... Qe1+ {[%clk 0:00:05.8]} 68. Kh2
{[%clk 0:00:05]} 68... Qg3+ {[%clk 0:00:06.4]} 69. Kg1 {[%clk 0:00:05.5]} 69...
Qe1+ {[%clk 0:00:06.7]} 70. Kh2 {[%clk 0:00:05.8]} 70... Kh4 {[%clk 0:00:05.9]}
71. Qd8+ {[%clk 0:00:05.1]} 71... Kh5 {[%clk 0:00:05.6]} 72. Qe8+ {[%clk
0:00:04.9]} 72... Kg5 {[%clk 0:00:05.2]} 73. Qg8+ {[%clk 0:00:03.8]} 73... Kh5
{[%clk 0:00:05.4]} 74. Qf7+ {[%clk 0:00:03.5]} 74... Kg5 {[%clk 0:00:05.5]} 75.
Qe7+ {[%clk 0:00:03.5]} 75... Kh5 {[%clk 0:00:05.6]} 76. Qe8+ {[%clk 0:00:04]}
76... Kg5 {[%clk 0:00:05.7]} 77. Qg8+ {[%clk 0:00:04.5]} 77... Kh5 {[%clk
0:00:06]} 78. Qf7+ {[%clk 0:00:04.6]} 78... Kg5 {[%clk 0:00:06.1]} 79. Qd5
{[%clk 0:00:04.7]} 79... Qg3+ {[%clk 0:00:05.2]} 80. Kh1 {[%clk 0:00:05]} 80...
Qe1+ {[%clk 0:00:05.8]} 81. Kh2 {[%clk 0:00:05.5]} 81... Qg3+ {[%clk 0:00:06.2]}
82. Kg1 {[%clk 0:00:05.8]} 82... Qe1+ {[%clk 0:00:06.8]} 83. Kh2 {[%clk
0:00:06.2]} 1/2-1/2

[Event "*** Titled Tuesday Blitz"]
[Site "Chess.com"]
[Date "2020.04.14"]
[Round "8"]
[White "Chesswizard_2007"]
[Black "elohunter1999"]
[Result "1-0"]
[WhiteElo "2619"]
[BlackElo "2477"]
[TimeControl "180+1"]
[EndTime "11:32:11 PDT"]
[Termination "Chesswizard_2007 won on time"]

1. d4 {[%clk 0:03:00.9]} 1... Nf6 {[%clk 0:02:59]} 2. c4 {[%clk 0:03:01]} 2...
g6 {[%clk 0:02:59.5]} 3. f3 {[%clk 0:03:00.1]} 3... d5 {[%clk 0:02:58.3]} 4.
cxd5 {[%clk 0:03:01]} 4... Nxd5 {[%clk 0:02:58.8]} 5. e4 {[%clk 0:03:01.9]} 5...
Nb6 {[%clk 0:02:58.9]} 6. Nc3 {[%clk 0:03:02.4]} 6... Bg7 {[%clk 0:02:59.1]} 7.
Be3 {[%clk 0:03:02.9]} 7... O-O {[%clk 0:02:59.3]} 8. Qd2 {[%clk 0:03:03.2]}
8... Nc6 {[%clk 0:02:59.5]} 9. O-O-O {[%clk 0:03:03.4]} 9... Qd6 {[%clk
0:02:59.8]} 10. Nb5 {[%clk 0:03:02.8]} 10... Qd7 {[%clk 0:02:59.1]} 11. Kb1
{[%clk 0:03:02.8]} 11... Rd8 {[%clk 0:02:55.3]} 12. d5 {[%clk 0:03:03]} 12... a6
{[%clk 0:02:51.2]} 13. Nc3 {[%clk 0:02:56.2]} 13... Qe8 {[%clk 0:02:29.4]} 14.
Qc1 {[%clk 0:02:54.9]} 14... Na5 {[%clk 0:02:25]} 15. Bh6 {[%clk 0:02:53.6]}
15... Bxh6 {[%clk 0:02:19]} 16. Qxh6 {[%clk 0:02:54.5]} 16... e6 {[%clk
0:02:19.6]} 17. h4 {[%clk 0:02:27.2]} 17... exd5 {[%clk 0:02:18.2]} 18. h5
{[%clk 0:02:23.2]} 18... Qf8 {[%clk 0:02:15.4]} 19. hxg6 {[%clk 0:02:20.5]}
19... Qxh6 {[%clk 0:02:07.4]} 20. Rxh6 {[%clk 0:02:19.1]} 20... hxg6 {[%clk
0:02:07.1]} 21. exd5 {[%clk 0:02:06.7]} 21... c6 {[%clk 0:01:48.4]} 22. b4
{[%clk 0:01:26.7]} 22... Nac4 {[%clk 0:01:42.9]} 23. Bxc4 {[%clk 0:01:18.8]}
23... Nxc4 {[%clk 0:01:41.3]} 24. Nge2 {[%clk 0:01:18.3]} 24... Bf5+ {[%clk
0:01:31.2]} 25. Kc1 {[%clk 0:01:17.7]} 25... cxd5 {[%clk 0:01:32.1]} 26. Rxd5
{[%clk 0:01:07.9]} 26... Rxd5 {[%clk 0:01:03.1]} 27. Nxd5 {[%clk 0:01:08.8]}
27... Kg7 {[%clk 0:01:03.3]} 28. Rh4 {[%clk 0:01:05.7]} 28... b5 {[%clk
0:00:54.4]} 29. Nd4 {[%clk 0:00:55.2]} 29... Rd8 {[%clk 0:00:32.5]} 30. Nxf5+
{[%clk 0:00:53.4]} 30... gxf5 {[%clk 0:00:33.3]} 31. Nc3 {[%clk 0:00:41.7]}
31... Rd3 {[%clk 0:00:26.9]} 32. Ne2 {[%clk 0:00:34.9]} 32... Rd2 {[%clk
0:00:26.7]} 33. Ng3 {[%clk 0:00:33]} 33... Rxg2 {[%clk 0:00:25.8]} 34. Nxf5+
{[%clk 0:00:32.6]} 34... Kf6 {[%clk 0:00:23.8]} 35. Nd4 {[%clk 0:00:29]} 35...
Rxa2 {[%clk 0:00:23.7]} 36. f4 {[%clk 0:00:27]} 36... Rf2 {[%clk 0:00:20.7]} 37.
Rh6+ {[%clk 0:00:25.8]} 37... Ke7 {[%clk 0:00:20.4]} 38. Rxa6 {[%clk 0:00:23]}
38... Rxf4 {[%clk 0:00:20.5]} 39. Nxb5 {[%clk 0:00:23.5]} 39... Ne5 {[%clk
0:00:20.8]} 40. Nc3 {[%clk 0:00:20.3]} 40... Nd3+ {[%clk 0:00:18.2]} 41. Kd2
{[%clk 0:00:20.3]} 41... Nxb4 {[%clk 0:00:18.7]} 42. Rb6 {[%clk 0:00:20.1]}
42... Rd4+ {[%clk 0:00:17.6]} 43. Ke3 {[%clk 0:00:18.3]} 43... Nc2+ {[%clk
0:00:17.8]} 44. Ke2 {[%clk 0:00:17.6]} 44... Kf8 {[%clk 0:00:17.9]} 45. Rb2
{[%clk 0:00:17.3]} 45... Na3 {[%clk 0:00:18.1]} 46. Ra2 {[%clk 0:00:15.2]} 46...
Nc4 {[%clk 0:00:17.9]} 47. Ra4 {[%clk 0:00:15.5]} 47... f5 {[%clk 0:00:16.4]}
48. Nb5 {[%clk 0:00:15.7]} 48... Re4+ {[%clk 0:00:16.2]} 49. Kf2 {[%clk
0:00:14.4]} 49... Ke7 {[%clk 0:00:15.7]} 50. Nc3 {[%clk 0:00:14.6]} 50... Rf4+
{[%clk 0:00:15.2]} 51. Kg3 {[%clk 0:00:13.3]} 51... Rg4+ {[%clk 0:00:15.4]} 52.
Kf2 {[%clk 0:00:13.9]} 52... Kf6 {[%clk 0:00:15.7]} 53. Ra6+ {[%clk 0:00:12.3]}
53... Kg5 {[%clk 0:00:15.9]} 54. Ra8 {[%clk 0:00:12.2]} 54... Nd6 {[%clk
0:00:15.4]} 55. Ne2 {[%clk 0:00:11.8]} 55... Ne4+ {[%clk 0:00:14.6]} 56. Ke3
{[%clk 0:00:12.4]} 56... Rh4 {[%clk 0:00:14.6]} 57. Rg8+ {[%clk 0:00:12.1]}
57... Kf6 {[%clk 0:00:14.8]} 58. Rf8+ {[%clk 0:00:12.7]} 58... Ke6 {[%clk
0:00:14.9]} 59. Nf4+ {[%clk 0:00:13]} 59... Ke5 {[%clk 0:00:13.3]} 60. Ng6+
{[%clk 0:00:13]} 60... Ke6 {[%clk 0:00:13.5]} 61. Nxh4 {[%clk 0:00:13.9]} 61...
Nf6 {[%clk 0:00:13.4]} 62. Ra8 {[%clk 0:00:11.9]} 62... Nd5+ {[%clk 0:00:12.9]}
63. Kf3 {[%clk 0:00:12.1]} 63... Nf6 {[%clk 0:00:13]} 64. Ng2 {[%clk 0:00:11.5]}
64... Ne4 {[%clk 0:00:12]} 65. Nf4+ {[%clk 0:00:11.6]} 65... Ke5 {[%clk
0:00:12.4]} 66. Ra5+ {[%clk 0:00:11.6]} 66... Kf6 {[%clk 0:00:12.5]} 67. Nd3
{[%clk 0:00:10.5]} 67... Ng5+ {[%clk 0:00:12.2]} 68. Ke2 {[%clk 0:00:09.8]}
68... Ne4 {[%clk 0:00:12.1]} 69. Nf2 {[%clk 0:00:09.2]} 69... Nc3+ {[%clk
0:00:11.3]} 70. Kf3 {[%clk 0:00:09.1]} 70... Kg5 {[%clk 0:00:09.2]} 71. Nh3+
{[%clk 0:00:08.4]} 71... Kf6 {[%clk 0:00:08.9]} 72. Ng1 {[%clk 0:00:09]} 72...
Ne4 {[%clk 0:00:09.1]} 73. Ne2 {[%clk 0:00:08.6]} 73... Ng5+ {[%clk 0:00:09]}
74. Ke3 {[%clk 0:00:09.2]} 74... Ne4 {[%clk 0:00:09]} 75. Nd4 {[%clk 0:00:08.8]}
75... Ng3 {[%clk 0:00:08.7]} 76. Kf3 {[%clk 0:00:08.4]} 76... Nh5 {[%clk
0:00:05.7]} 77. Rxf5+ {[%clk 0:00:08.3]} 77... Kg6 {[%clk 0:00:06.3]} 78. Ra5
{[%clk 0:00:09]} 78... Nf6 {[%clk 0:00:06.8]} 79. Kf4 {[%clk 0:00:08.8]} 79...
Nh5+ {[%clk 0:00:06.9]} 80. Ke5 {[%clk 0:00:09.3]} 80... Kg5 {[%clk 0:00:05.9]}
81. Nf5 {[%clk 0:00:09.1]} 81... Nf4 {[%clk 0:00:04]} 82. Ke4 {[%clk 0:00:08.2]}
82... Ng6 {[%clk 0:00:03.7]} 83. Ne3+ {[%clk 0:00:08.1]} 83... Kh4 {[%clk
0:00:03.4]} 84. Kf5 {[%clk 0:00:06.6]} 84... Ne7+ {[%clk 0:00:03.3]} 85. Kf4
{[%clk 0:00:07.4]} 85... Ng6+ {[%clk 0:00:02.3]} 86. Kf3 {[%clk 0:00:08]} 1-0